fUST/lending_fUST_20241213
["ID","MTS","AMOUNT","RATE_DAILY","PERIOD"]
[345165317,1734073867470,-1669.83,0.00027945,7]
[345165319,1734073867480,-500.0,0.00027945,7]
[345165321,1734073867490,-805.2,0.00027945,7]
[345165323,1734073867499,-500.0,0.00027945,7]
[345165325,1734073867509,-500.0,0.00027945,7]
[345165327,1734073867518,-500.0,0.00027945,7]
[345165329,1734073867527,-5241.44,0.00027945,7]
[345165331,1734073867537,-1014.65,0.00027945,7]
[345165333,1734073867546,-637.87,0.00027945,7]
[345165335,1734073867556,-500.0,0.00027945,7]
[345165337,1734073867565,-7567.01,0.00027945,7]
[345165339,1734073867574,-3845.18,0.00027945,7]
[345165341,1734073867584,-613.66,0.00027945,7]
[345165343,1734073867593,-556.39,0.00027945,7]
[345165345,1734073867601,-500.0,0.00027945,7]
[345165347,1734073867611,-245.13777099,0.00027945,7]
[345165349,1734073867620,-500.0,0.00027945,7]
[345165350,1734073867633,-500.0,0.00027945,7]
[345165352,1734073867643,-3110.15,0.00027945,7]
[345165354,1734073867653,-500.0,0.00027945,7]
[345165357,1734073867662,-500.0,0.00027945,7]
[345165358,1734073867671,-1541.34,0.00027945,7]
[345165361,1734073867681,-500.0,0.00027945,7]
[345165363,1734073867691,-500.0,0.00027945,7]
[345165364,1734073867700,-500.0,0.00027945,7]
[345165366,1734073867711,-500.0,0.00027945,7]
[345165368,1734073867721,-513.11,0.00027945,7]
[345165370,1734073867730,-448.70204588,0.00027945,7]
[345165372,1734073867740,-243.85727074,0.00027945,2]
[345165374,1734073867749,-642.17476651,0.00027945,7]
[345165376,1734073867758,-1760.13,0.00027945,7]
[345165378,1734073867767,-500.0,0.00027945,7]
[345165380,1734073867777,-2152.36,0.00027945,7]
[345165382,1734073867786,-844.94,0.00027945,7]
[345165384,1734073867795,-500.0,0.00027945,7]
[345165386,1734073867804,-232.91323425,0.00027945,7]
[345165388,1734073867813,-500.0,0.00027945,7]
[345165390,1734073867822,-500.0,0.00027945,7]
[345165392,1734073867831,-500.0,0.00027945,7]
[345165394,1734073867841,-500.0,0.00027945,7]
[345165396,1734073867850,-500.0,0.00027945,7]
[345165398,1734073867860,-3513.32,0.00027945,7]
[345165400,1734073867870,-1214.56,0.00027945,7]
[345165402,1734073867886,-794.79,0.00027945,7]
[345165404,1734073867895,-500.0,0.00027945,7]
[345165406,1734073867904,-500.0,0.00027945,7]
[345165408,1734073867914,-565.88,0.00027945,7]
[345165410,1734073867923,-649.36088944,0.00027945,7]
[345165412,1734073867933,-500.0,0.00027945,7]
[345165414,1734073867943,-777.95,0.00027945,7]
[345165416,1734073867952,-395.20241195,0.00027945,7]
[345165419,1734073867962,-823.48,0.00027945,7]
[345165421,1734073867971,-500.0,0.00027945,7]
[345165422,1734073867981,-1447.45,0.00027945,7]
[345165424,1734073867990,-1173.37259436,0.0002799,7]
[345165426,1734073868001,-809.25327121,0.00027999,120]
[345165429,1734073868011,-6906.0,0.00028,15]
[345165430,1734073868020,-330.0,0.00028,120]
[345165433,1734073868030,-1000.0,0.00028,28]
[345165434,1734073868039,-2000.0,0.00028,4]
[345165436,1734073868049,-7657.75774425,0.00028,7]
[345165439,1734073868059,-1500.0,0.00028,2]
[345165440,1734073868068,-1500.0,0.00028,2]
[345165443,1734073868078,-1500.0,0.00028,2]
[345165445,1734073868089,-1500.0,0.00028,2]
[345165446,1734073868098,-1500.0,0.00028,2]
[345165448,1734073868107,-1500.0,0.00028,2]
[345165451,1734073868117,-1625.54,0.00028,2]
[345165452,1734073868129,-1500.0,0.00028,2]
[345165454,1734073868139,-1500.0,0.00028,2]
[345165456,1734073868148,-1500.0,0.00028,2]
[345165458,1734073868157,-1500.0,0.00028,2]
[345165460,1734073868166,-5000.0,0.00028,60]
[345165462,1734073868175,-2349.64049363,0.00028,2]
[345165464,1734073868185,-4189.0,0.00028,30]
[345165466,1734073868194,-365.1,0.00028,120]
[345165468,1734073868203,-5000.0,0.00028,30]
[345165470,1734073868213,-185848.0,0.00028,2]
[345165472,1734073868222,-500.0,0.00028,2]
[345165474,1734073868231,-500.0,0.00028,2]
[345165476,1734073868240,-500.0,0.00028,2]
[345165478,1734073868250,-300.0,0.00028,10]
[345165480,1734073868259,-38070.65827925,0.00028,120]
[345165482,1734073868268,-14000.0,0.00028,4]
[345165484,1734073868278,-255.65665459,0.00028028,2]
[345165486,1734073868289,-150.06,0.00028195,2]
[345165488,1734073868298,-151.50693499,0.00028195,2]
[345165490,1734073868308,-903.36560765,0.00028195,2]
[345165492,1734073868317,-255.65665459,0.0002821,2]
[345165494,1734073868328,-500.0,0.00028219,2]
[345165496,1734073868338,-500.0,0.00028219,7]
[345165498,1734073868347,-500.0,0.00028219,7]
[345165500,1734073868357,-717.54,0.00028219,7]
[345165502,1734073868366,-500.0,0.00028219,7]
[345165504,1734073868377,-500.0,0.00028219,7]
[345165506,1734073868387,-526.38,0.00028219,7]
[345165508,1734073868396,-511.23295068,0.00028219,7]
[345165510,1734073868406,-500.0,0.00028219,7]
[345165512,1734073868415,-500.0,0.00028219,7]
[345165514,1734073868424,-1060.98,0.00028219,7]
[345165516,1734073868433,-500.0,0.00028219,7]
[345165518,1734073868443,-500.0,0.00028219,7]
[345165520,1734073868455,-500.00349657,0.00028219,7]
[345165522,1734073868464,-517.38371782,0.00028219,7]
[345165524,1734073868473,-511.04512664,0.00028219,7]
[345165526,1734073868483,-500.0,0.00028219,7]
[345165528,1734073868492,-504.17,0.00028219,7]
[345165530,1734073868501,-500.0,0.00028219,7]
[345165532,1734073868510,-506.77,0.00028219,7]
[345165534,1734073868520,-500.0,0.00028219,7]
[345165536,1734073868529,-500.0,0.00028219,7]
[345165538,1734073868539,-500.0,0.00028219,7]
[345165540,1734073868549,-500.0,0.00028219,7]
[345165542,1734073868558,-500.0,0.00028219,7]
[345165544,1734073868568,-500.0,0.00028219,7]
[345165546,1734073868577,-710.23,0.00028219,7]
[345165548,1734073868587,-500.0,0.00028219,7]
[345165550,1734073868596,-500.0,0.00028219,7]
[345165552,1734073868605,-712.31,0.00028219,7]
[345165554,1734073868614,-540.72,0.00028219,7]
[345165556,1734073868623,-779.87,0.00028219,7]
[345165558,1734073868633,-281.9860327,0.00028219,7]
[345165560,1734073868643,-500.0,0.00028219,7]
[345165562,1734073868652,-500.0,0.00028219,7]
[345165564,1734073868661,-500.0,0.00028219,7]
[345165566,1734073868671,-500.0,0.00028219,7]
[345165568,1734073868681,-500.0,0.00028219,7]
[345165570,1734073868690,-500.0,0.00028219,7]
[345165572,1734073868700,-550.49,0.00028219,7]
[345165574,1734073868710,-875.69,0.00028219,7]
[345165576,1734073868719,-500.0,0.00028219,7]
[345165578,1734073868729,-500.0,0.00028219,7]
[345165580,1734073868737,-500.0,0.00028219,7]
[345165582,1734073868747,-500.0,0.00028219,7]
[345165584,1734073868757,-500.0,0.00028219,7]
[345165586,1734073868766,-718.22,0.00028219,7]
[345165588,1734073868776,-500.0,0.00028219,7]
[345165590,1734073868785,-1639.41,0.00028219,7]
[345165592,1734073868795,-500.0,0.00028219,7]
[345165594,1734073868804,-500.0,0.00028219,7]
[345165596,1734073868814,-500.0,0.00028219,7]
[345165598,1734073868824,-1045.63,0.00028219,7]
[345165600,1734073868834,-926.35,0.00028219,7]
[345165602,1734073868843,-500.0,0.00028219,7]
[345165604,1734073868853,-500.0,0.00028219,7]
[345165606,1734073868862,-500.0,0.00028219,7]
[345165608,1734073868875,-500.0,0.00028219,7]
[345165610,1734073868886,-1759.92,0.00028219,7]
[345165612,1734073868895,-500.0,0.00028219,7]
[345165613,1734073868905,-500.0,0.00028219,7]
[345165615,1734073868915,-500.0,0.00028219,7]
[345165617,1734073868924,-547.36041586,0.00028219,7]
[345165619,1734073868934,-500.0,0.00028219,7]
[345165622,1734073868944,-541.72,0.00028219,7]
[345165623,1734073868954,-500.0,0.00028219,7]
[345165626,1734073868963,-500.0,0.00028219,7]
[345165628,1734073868972,-512.94,0.00028219,7]
[345165629,1734073868982,-609.25,0.00028219,7]
[345165632,1734073868992,-866.24,0.00028219,7]
[345165634,1734073869001,-583.41,0.00028219,7]
[345165635,1734073869010,-500.0,0.00028219,7]
[345165637,1734073869020,-598.9,0.00028219,7]
[345165640,1734073869029,-1184.65,0.00028219,7]
[345165642,1734073869038,-534.17,0.00028219,7]
[345165644,1734073869048,-967.68,0.00028219,7]
[345165646,1734073869057,-500.0,0.00028219,7]
[345165648,1734073869066,-500.0,0.00028219,7]
[345165650,1734073869076,-500.0,0.00028219,7]
[345165652,1734073869086,-500.0,0.00028219,7]
[345165654,1734073869095,-1372.64,0.00028219,7]
[345165655,1734073869104,-500.0,0.00028219,7]
[345165657,1734073869114,-500.0,0.00028219,7]
[345165660,1734073869126,-500.0,0.00028219,7]
[345165661,1734073869138,-1188.86,0.00028219,7]
[345165664,1734073869151,-500.0,0.00028219,7]
[345165665,1734073869160,-500.0,0.00028219,7]
[345165667,1734073869170,-983.86,0.00028219,7]
[345165670,1734073869179,-1029.45,0.00028219,7]
[345165671,1734073869188,-500.0,0.00028219,7]
[345165673,1734073869198,-500.0,0.00028219,7]
[345165675,1734073869208,-500.0,0.00028219,7]
[345165677,1734073869217,-500.0,0.00028219,7]
[345165679,1734073869226,-500.0,0.00028219,7]
[345165682,1734073869236,-500.0,0.00028219,7]
[345165683,1734073869245,-500.0,0.00028219,7]
[345165685,1734073869255,-516.66544235,0.00028219,7]
[345165687,1734073869265,-500.0,0.00028219,7]
[345165689,1734073869275,-500.0,0.00028219,7]
[345165691,1734073869284,-290.43068933,0.00028219,7]
[345165694,1734073869294,-500.0,0.00028219,7]
[345165696,1734073869303,-625.88,0.00028219,7]
[345165698,1734073869313,-500.0,0.00028219,7]
[345165699,1734073869322,-512.97238493,0.00028219,7]
[345165701,1734073869331,-500.0,0.00028219,7]
[345165703,1734073869340,-500.0,0.00028219,7]
[345165705,1734073869350,-539.73,0.00028219,7]
[345165708,1734073869360,-500.0,0.00028219,7]
[345165710,1734073869372,-500.0,0.00028219,7]
[345165712,1734073869385,-500.0,0.00028219,7]
[345165714,1734073869394,-500.0,0.00028219,7]
[345165716,1734073869403,-500.0,0.00028219,7]
[345165717,1734073869413,-1122.36,0.00028219,7]
[345165719,1734073869422,-500.0,0.00028219,7]
[345165720,1734073869432,-500.0,0.00028219,7]
[345165721,1734073869441,-754.87,0.00028219,7]
[345165722,1734073869451,-500.0,0.00028219,7]
[345165723,1734073869463,-500.0,0.00028219,7]
[345165724,1734073869472,-500.0,0.00028219,7]
[345165725,1734073869481,-500.0,0.00028219,7]
[345165726,1734073869491,-987.16,0.00028219,7]
[345165728,1734073869501,-500.0,0.00028219,7]
[345165730,1734073869511,-500.0,0.00028219,7]
[345165732,1734073869520,-500.0,0.00028219,7]
[345165734,1734073869532,-500.0,0.00028219,7]
[345165736,1734073869542,-500.0,0.00028219,7]
[345165738,1734073869551,-500.0,0.00028219,2]
[345165740,1734073869561,-500.0,0.00028219,7]
[345165742,1734073869570,-500.0,0.00028219,7]
[345165744,1734073869579,-764.89,0.00028219,7]
[345165746,1734073869588,-500.0,0.00028219,7]
[345165748,1734073869598,-500.0,0.00028219,7]
[345165750,1734073869607,-500.0,0.00028219,7]
[345165752,1734073869617,-500.0,0.00028219,7]
[345165754,1734073869630,-500.0,0.00028219,7]
[345165756,1734073869639,-748.21,0.00028219,7]
[345165758,1734073869648,-891.63,0.00028219,7]
[345165760,1734073869658,-500.0,0.00028219,7]
[345165762,1734073869667,-1012.58,0.00028219,7]
[345165764,1734073869676,-500.0,0.00028219,7]
[345165766,1734073869685,-500.0,0.00028219,7]
[345165768,1734073869695,-500.0,0.00028219,7]
[345165770,1734073869704,-1562.4,0.00028219,7]
[345165772,1734073869714,-500.0,0.00028219,7]
[345165774,1734073869724,-500.0,0.00028219,7]
[345165776,1734073869733,-500.0,0.00028219,7]
[345165778,1734073869742,-1079.28,0.00028219,7]
[345165780,1734073869752,-500.0,0.00028219,7]
[345165782,1734073869761,-844.87,0.00028219,7]
[345165784,1734073869771,-500.0,0.00028219,7]
[345165787,1734073869781,-861.33,0.00028219,7]
[345165789,1734073869790,-500.0,0.00028219,7]
[345165791,1734073869799,-500.0,0.00028219,7]
[345165793,1734073869809,-179.52072775,0.00028219,7]
[345165810,1734073869959,-500.0,0.00028219,7]
[345165813,1734073869969,-642.13,0.00028219,7]
[345165815,1734073869978,-500.0,0.00028219,7]
[345165817,1734073869987,-580.55,0.00028219,7]
[345165819,1734073869996,-1754.92,0.00028219,7]
[345165821,1734073870005,-500.0,0.00028219,7]
[345165823,1734073870015,-500.0,0.00028219,7]
[345165825,1734073870024,-500.0,0.00028219,7]
[345165827,1734073870033,-500.0,0.00028219,7]
[345165829,1734073870043,-500.0,0.00028219,7]
[345165831,1734073870051,-500.0,0.00028219,7]
[345165833,1734073870060,-575.38,0.00028219,7]
[345165835,1734073870070,-261.54475839,0.00028219,7]
[345165837,1734073870079,-500.0,0.00028219,7]
[345165839,1734073870088,-1597.88,0.00028219,7]
[345165841,1734073870097,-545.17,0.00028219,7]
[345165843,1734073870107,-500.0,0.00028219,7]
[345165845,1734073870116,-1408.4,0.00028219,7]
[345165847,1734073870128,-1493.83,0.00028219,7]
[345165849,1734073870137,-612.01,0.00028219,7]
[345165851,1734073870147,-710.98,0.00028219,7]
[345165853,1734073870156,-1455.91,0.00028219,7]
[345165855,1734073870165,-500.0,0.00028219,7]
[345165857,1734073870174,-500.0,0.00028219,7]
[345165859,1734073870183,-500.0,0.00028219,7]
[345165861,1734073870192,-500.0,0.00028219,7]
[345165863,1734073870202,-500.0,0.00028219,7]
[345165865,1734073870211,-1031.95,0.00028219,7]
[345165867,1734073870220,-500.0,0.00028219,7]
[345165869,1734073870229,-500.0,0.00028219,7]
[345165871,1734073870238,-500.0,0.00028219,7]
[345165873,1734073870248,-500.0,0.00028219,7]
[345165875,1734073870257,-500.0,0.00028219,7]
[345165877,1734073870267,-930.78,0.00028219,7]
[345165879,1734073870276,-500.0,0.00028219,7]
[345165881,1734073870285,-500.0,0.00028219,7]
[345165884,1734073870294,-500.0,0.00028219,7]
[345165886,1734073870303,-500.0,0.00028219,7]
[345165888,1734073870313,-500.0,0.00028219,7]
[345165890,1734073870322,-750.66,0.00028219,7]
[345165892,1734073870331,-500.0,0.00028219,7]
[345165894,1734073870340,-510.45502129,0.00028219,7]
[345165896,1734073870349,-742.52,0.00028219,7]
[345165898,1734073870358,-581.53,0.00028219,7]
[345165900,1734073870368,-500.0,0.00028219,7]
[345165902,1734073870381,-500.0,0.00028219,7]
[345165904,1734073870390,-500.0,0.00028219,7]
[345165906,1734073870399,-685.0,0.00028219,7]
[345165908,1734073870410,-561.92,0.00028219,7]
[345165910,1734073870419,-500.69,0.00028219,7]
[345165912,1734073870428,-611.51,0.00028219,7]
[345165914,1734073870437,-560.45,0.00028219,7]
[345165916,1734073870447,-500.0,0.00028219,7]
[345165918,1734073870459,-500.0,0.00028219,7]
[345165920,1734073870468,-500.0,0.00028219,7]
[345165922,1734073870477,-500.0,0.00028219,7]
[345165925,1734073870487,-500.0,0.00028219,7]
[345165927,1734073870497,-586.35,0.00028219,7]
[345165929,1734073870506,-671.76,0.00028219,7]
[345165931,1734073870516,-500.0,0.00028219,7]
[345165933,1734073870525,-821.87,0.00028219,7]
[345165935,1734073870534,-174.46790314,0.00028219,7]
[345165937,1734073870543,-763.18,0.00028219,7]
[345165939,1734073870553,-500.0,0.00028219,7]
[345165941,1734073870562,-500.0,0.00028219,7]
[345165943,1734073870571,-500.0,0.00028219,7]
[345165945,1734073870580,-500.0,0.00028219,7]
[345165947,1734073870590,-500.0,0.00028219,7]
[345165949,1734073870599,-500.0,0.00028219,7]
[345165951,1734073870608,-500.0,0.00028219,7]
[345165953,1734073870618,-500.0,0.00028219,7]
[345165955,1734073870631,-1939.32,0.00028219,7]
[345165957,1734073870640,-500.0,0.00028219,7]
[345165959,1734073870649,-500.0,0.00028219,7]
[345165961,1734073870658,-500.0,0.00028219,7]
[345165963,1734073870675,-791.43,0.00028219,7]
[345165965,1734073870685,-500.0,0.00028219,7]
[345165967,1734073870695,-854.56,0.00028219,7]
[345165969,1734073870704,-150.30547613,0.00028219,7]
[345165971,1734073870715,-613.3,0.00028219,7]
[345165973,1734073870726,-500.0,0.00028219,7]
[345165975,1734073870735,-500.0,0.00028219,7]
[345165977,1734073870745,-500.0,0.00028219,7]
[345165979,1734073870754,-500.0,0.00028219,7]
[345165981,1734073870763,-781.05,0.00028219,7]
[345165983,1734073870776,-500.0,0.00028219,7]
[345165985,1734073870786,-500.0,0.00028219,7]
[345165987,1734073870795,-500.0,0.00028219,7]
[345165990,1734073870804,-500.0,0.00028219,7]
[345165992,1734073870813,-267.45320331,0.00028219,7]
[345165994,1734073870823,-500.0,0.00028219,7]
[345165996,1734073870832,-500.0,0.00028219,7]
[345165998,1734073870841,-466.88502726,0.00028219,7]
[345166000,1734073870850,-1549.05,0.00028219,7]
[345166002,1734073870859,-500.0,0.00028219,7]
[345166004,1734073870868,-500.0,0.00028219,7]
[345166006,1734073870879,-500.0,0.00028219,7]
[345166008,1734073870889,-500.0,0.00028219,7]
[345166010,1734073870899,-1117.3,0.00028219,7]
[345166012,1734073870908,-500.0,0.00028219,7]
[345166014,1734073870917,-500.0,0.00028219,7]
[345166016,1734073870926,-1000.0,0.00028219,2]
[345166018,1734073870936,-500.0,0.00028219,7]
[345166020,1734073870945,-500.0,0.00028219,7]
[345166022,1734073870954,-500.0,0.00028219,7]
[345166024,1734073870963,-918.3,0.00028219,7]
[345166026,1734073870972,-1626.18,0.00028219,7]
[345166028,1734073870982,-500.0,0.00028219,7]
[345166030,1734073870993,-500.0,0.00028219,7]
[345166032,1734073871003,-500.0,0.00028219,7]
[345166034,1734073871012,-500.0,0.00028219,7]
[345166036,1734073871021,-500.0,0.00028219,7]
[345166038,1734073871030,-500.0,0.00028219,7]
[345166040,1734073871039,-500.0,0.00028219,7]
[345166042,1734073871048,-500.0,0.00028219,7]
[345166044,1734073871057,-500.0,0.00028219,7]
[345166046,1734073871067,-500.0,0.00028219,7]
[345166048,1734073871076,-500.0,0.00028219,7]
[345166050,1734073871085,-323.79539718,0.00028219,7]
[345166052,1734073871095,-661.48,0.00028219,7]
[345166054,1734073871104,-168.0,0.00028219,7]
[345166056,1734073871113,-2467.25,0.00028219,7]
[345166058,1734073871122,-854.23,0.00028219,7]
[345166060,1734073871134,-576.59,0.00028219,7]
[345166063,1734073871143,-500.0,0.00028219,7]
[345166064,1734073871152,-596.77,0.00028219,7]
[345166066,1734073871162,-200.0,0.00028219,7]
[345166068,1734073871171,-520.83498455,0.00028219,7]
[345166071,1734073871181,-500.0,0.00028219,7]
[345166073,1734073871190,-500.0,0.00028219,7]
[345166075,1734073871199,-500.0,0.00028219,7]
[345166077,1734073871208,-500.0,0.00028219,7]
[345166079,1734073871217,-500.0,0.00028219,7]
[345166081,1734073871226,-504.74,0.00028219,7]
[345166083,1734073871235,-2075.55,0.00028219,7]
[345166085,1734073871244,-500.0,0.00028219,7]
[345166087,1734073871254,-2144.24,0.00028219,7]
[345166089,1734073871264,-500.0,0.00028219,7]
[345166091,1734073871273,-500.0,0.00028219,7]
[345166093,1734073871283,-598.18,0.00028219,7]
[345166095,1734073871293,-504.29,0.00028219,7]
[345166097,1734073871302,-500.0,0.00028219,7]
[345166099,1734073871311,-695.31,0.00028219,7]
[345166101,1734073871320,-500.0,0.00028219,7]
[345166103,1734073871329,-500.0,0.00028219,7]
[345166105,1734073871338,-551.25,0.00028219,7]
[345166107,1734073871347,-1042.61,0.00028219,7]
[345166109,1734073871356,-500.0,0.00028219,7]
[345166111,1734073871365,-500.0,0.00028219,7]
[345166113,1734073871375,-536.03174495,0.00028219,7]
[345166115,1734073871386,-500.0,0.00028219,7]
[345166117,1734073871395,-500.0,0.00028219,7]
[345166119,1734073871405,-500.0,0.00028219,7]
[345166121,1734073871414,-500.0,0.00028219,7]
[345166123,1734073871423,-458.04819171,0.00028219,7]
[345166125,1734073871432,-567.31715344,0.00028219,7]
[345166127,1734073871441,-514.06089421,0.00028219,7]
[345166129,1734073871453,-1132.49,0.00028219,7]
[345166131,1734073871462,-500.0,0.00028219,7]
[345166133,1734073871472,-500.0,0.00028219,7]
[345166135,1734073871481,-500.0,0.00028219,7]
[345166137,1734073871491,-554.26,0.00028219,7]
[345166139,1734073871500,-848.29,0.00028219,7]
[345166141,1734073871509,-500.0,0.00028219,7]
[345166143,1734073871518,-742.65,0.00028219,7]
[345166145,1734073871528,-500.0,0.00028219,7]
[345166147,1734073871537,-793.69,0.00028219,7]
[345166149,1734073871546,-500.0,0.00028219,7]
[345166151,1734073871555,-500.0,0.00028219,7]
[345166153,1734073871565,-500.0,0.00028219,7]
[345166155,1734073871574,-500.0,0.00028219,7]
[345166157,1734073871583,-500.0,0.00028219,7]
[345166159,1734073871592,-623.68042207,0.00028219,7]
[345166161,1734073871601,-500.0,0.00028219,7]
[345166163,1734073871610,-660.24,0.00028219,7]
[345166165,1734073871619,-959.74,0.00028219,7]
[345166167,1734073871630,-500.0,0.00028219,7]
[345166169,1734073871639,-628.73,0.00028219,7]
[345166171,1734073871648,-500.0,0.00028219,7]
[345166173,1734073871658,-500.0,0.00028219,7]
[345166175,1734073871667,-913.29,0.00028219,7]
[345166177,1734073871676,-769.48,0.00028219,7]
[345166179,1734073871685,-500.0,0.00028219,7]
[345166181,1734073871695,-500.0,0.00028219,7]
[345166183,1734073871704,-687.94,0.00028219,7]
[345166185,1734073871714,-500.0,0.00028219,7]
[345166188,1734073871723,-1239.0,0.00028219,7]
[345166190,1734073871733,-500.0,0.00028219,7]
[345166192,1734073871742,-1226.78,0.00028219,7]
[345166194,1734073871752,-500.0,0.00028219,7]
[345166196,1734073871761,-500.0,0.00028219,7]
[345166198,1734073871770,-500.0,0.00028219,7]
[345166200,1734073871780,-555.96,0.00028219,7]
[345166202,1734073871789,-500.0,0.00028219,7]
[345166204,1734073871799,-934.39,0.00028219,7]
[345166206,1734073871809,-500.0,0.00028219,7]
[345166208,1734073871818,-757.27,0.00028219,7]
[345166210,1734073871828,-1702.35,0.00028219,7]
[345166212,1734073871837,-500.0,0.00028219,7]
[345166214,1734073871847,-500.0,0.00028219,7]
[345166216,1734073871856,-694.34,0.00028219,7]
[345166218,1734073871865,-737.45,0.00028219,7]
[345166220,1734073871875,-851.51,0.00028219,7]
[345166222,1734073871886,-2417.87,0.00028219,7]
[345166229,1734073871939,-991.68,0.00028219,7]
[345166231,1734073871948,-1353.92,0.00028219,7]
[345166233,1734073871957,-516.48,0.00028219,7]
[345166235,1734073871966,-2043.23,0.00028219,7]
[345166237,1734073871975,-500.0,0.00028219,7]
[345166239,1734073871985,-500.0,0.00028219,7]
[345166241,1734073871994,-500.0,0.00028219,7]
[345166243,1734073872003,-872.8,0.00028219,7]
[345166245,1734073872012,-994.67,0.00028219,7]
[345166248,1734073872021,-771.58,0.00028219,7]
[345166250,1734073872031,-999.45,0.00028219,7]
[345166252,1734073872040,-1208.81,0.00028219,7]
[345166254,1734073872049,-1400.1,0.00028219,7]
[345166256,1734073872058,-662.17,0.00028219,7]
[345166257,1734073872067,-500.0,0.00028219,7]
[345166260,1734073872076,-1632.88,0.00028219,7]
[345166262,1734073872085,-500.0,0.00028219,7]
[345166264,1734073872094,-500.0,0.00028219,7]
[345166266,1734073872104,-500.0,0.00028219,7]
[345166267,1734073872113,-3598.79,0.00028219,7]
[345166269,1734073872123,-1161.27,0.00028219,7]
[345166271,1734073872134,-500.0,0.00028219,7]
[345166274,1734073872143,-500.0,0.00028219,7]
[345166276,1734073872153,-353.16752966,0.00028219,7]
[345166278,1734073872162,-761.46,0.00028219,7]
[345166280,1734073872171,-2849.29,0.00028219,7]
[345166281,1734073872180,-500.0,0.00028219,7]
[345166284,1734073872189,-500.0,0.00028219,7]
[345166286,1734073872199,-500.0,0.00028219,7]
[345166288,1734073872208,-1360.35,0.00028219,7]
[345166290,1734073872218,-830.13,0.00028219,7]
[345166292,1734073872227,-500.0,0.00028219,7]
[345166294,1734073872237,-269.73088146,0.00028219,7]
[345166296,1734073872246,-552.29,0.00028219,7]
[345166298,1734073872256,-1830.05,0.00028219,7]
[345166300,1734073872265,-500.0,0.00028219,7]
[345166302,1734073872274,-500.0,0.00028219,7]
[345166304,1734073872283,-2352.18,0.00028219,7]
[345166306,1734073872292,-665.66,0.00028219,2]
[345166308,1734073872301,-10350.06,0.00028219,7]
[345166310,1734073872310,-500.0,0.00028219,7]
[345166312,1734073872319,-500.0,0.00028219,7]
[345166314,1734073872328,-1088.5,0.00028219,7]
[345166316,1734073872337,-884.8,0.00028219,7]
[345166318,1734073872346,-1721.54,0.00028219,7]
[345166320,1734073872354,-500.0,0.00028219,7]
[345166322,1734073872364,-2055.1,0.00028219,7]
[345166324,1734073872373,-524.23,0.00028219,7]
[345166326,1734073872389,-500.0,0.00028219,7]
[345166328,1734073872398,-500.0,0.00028219,7]
[345166330,1734073872413,-500.0,0.00028219,7]
[345166332,1734073872422,-1393.08,0.00028219,7]
[345166334,1734073872431,-2000.0,0.00028219,7]